bitfinex/quotes_ETHUSD_20251215
["timestamp","ask_amount","ask_price","bid_price","bid_amount"]
[1765759466629,0.001,3060.7,3060.6,12.58236168]
[1765759466923,0.001,3061.2,3060.7,0.98597929]
[1765759467266,0.001,3061.2,3061.1,7.67204008]
[1765759467770,0.001,3061.2,3061.1,8.15224008]
[1765759467948,0.001,3061.2,3061.1,8.96746409]
[1765759468758,0.001,3061.2,3061.1,12.2342636]
[1765759470668,0.001,3061.2,3061.1,6.75240281]
[1765759473339,0.001,3061.8,3061.4,0.98597929]
[1765759473538,0.001,3061.8,3061.7,7.03783608]
[1765759473871,0.001,3062.0,3061.8,0.98597929]
[1765759474170,0.001,3062.0,3061.9,0.94235945]
[1765759474870,0.001,3062.0,3061.9,4.78878072]
[1765759475444,0.001,3062.0,3061.9,5.19428472]
[1765759477463,0.001,3062.0,3061.9,11.45672126]
[1765759477670,0.001,3062.0,3061.9,12.43950988]
[1765759479194,0.001,3062.0,3061.9,19.51925488]
[1765759479393,0.001,3062.0,3061.9,12.43950988]
[1765759484393,0.001,3062.0,3061.9,6.17707334]
[1765759484599,0.001,3062.0,3061.9,5.19109405]
[1765759484775,0.001,3062.0,3061.9,6.11559805]
[1765759484976,0.001,3062.0,3061.9,6.69607334]
[1765759485205,0.001,3062.0,3061.9,6.29056934]
[1765759485578,0.001,3062.0,3061.9,6.69607334]
[1765759486695,0.001,3062.0,3061.9,5.31836934]
[1765759486867,0.001,3062.0,3061.9,1.47194807]
[1765759487072,0.001,3062.0,3061.9,0.9755]
[1765759487290,0.001,3062.0,3061.9,1.55597529]
[1765759487486,0.001,3062.0,3061.9,0.9755]
[1765759488201,0.001,3062.0,3061.9,1.55597529]
[1765759489581,0.001,3062.0,3061.9,5.68062527]
[1765759489782,0.001,3062.0,3061.9,6.5754928]
[1765759491001,0.001,3062.0,3061.9,6.1222928]
[1765759491404,0.001,3062.0,3061.9,6.5754928]
[1765759493083,0.001,3062.0,3061.9,6.1222928]
[1765759493713,0.001,3062.0,3061.9,6.5754928]
[1765759495214,0.001,3062.0,3061.9,6.1222928]
[1765759495415,0.001,3062.0,3061.9,4.61731351]
[1765759495586,0.001,3062.0,3061.9,5.71328472]
[1765759498186,0.001,3062.0,3061.9,5.68062527]
[1765759500785,0.2755,3062.0,3061.8,0.002]
[1765759501008,0.6334,3061.9,3061.8,0.002]
[1765759501394,0.9117,3061.9,3061.8,0.002]
[1765759502313,4.17764598,3061.9,3061.8,0.002]
[1765759502488,4.92307389,3061.9,3061.8,0.002]
[1765759506421,5.50354918,3061.9,3061.8,0.002]
[1765759506827,6.02254918,3061.9,3061.8,0.002]
[1765759507504,5.50354918,3061.9,3061.8,0.002]
[1765759510715,5.90905318,3061.9,3061.8,0.002]
[1765759511306,6.42805318,3061.9,3061.8,0.002]
[1765759512752,35.04144718,3061.9,3061.8,0.002]
[1765759513036,25.25100218,3061.9,3061.8,0.002]
[1765759514238,12.75805318,3061.9,3061.8,0.002]
[1765759514549,4.17764598,3061.9,3061.8,0.002]
[1765759517339,0.001,3062.0,3061.8,0.4598]
[1765759517509,0.001,3062.0,3061.9,0.4578]
[1765759518043,0.001,3062.0,3061.9,0.944]
[1765759519110,0.001,3062.0,3061.9,4.79042127]
[1765759519311,0.001,3062.0,3061.9,5.59627033]
[1765759520214,0.001,3062.0,3061.9,2.33032435]
[1765759520409,0.001,3062.0,3061.9,5.30942127]
[1765759521739,0.001,3062.0,3061.9,1.03827529]
[1765759522045,0.001,3062.0,3061.9,4.79042127]
[1765759525626,0.001,3062.0,3061.9,1.52447529]
[1765759525828,0.001,3062.0,3061.8,0.002]
[1765759526212,0.001,3062.0,3061.8,0.43877268]
[1765759526654,0.91770728,3061.9,3061.8,0.002]
[1765759526839,0.4524,3061.9,3061.8,0.002]
[1765759527528,0.001,3062.0,3061.8,0.002]
[1765759528739,0.001,3062.0,3061.9,0.4753]
[1765759529314,0.001,3062.0,3061.8,0.521]
[1765759530356,0.001,3062.0,3061.8,0.95776486]
[1765759530528,0.001,3062.0,3061.8,0.521]
[1765759530851,0.001,3062.0,3061.8,0.002]
[1765759531218,0.001,3062.0,3061.8,0.521]
[1765759535335,0.2618,3061.9,3061.8,0.521]
[1765759535845,0.2618,3061.9,3061.8,0.002]
[1765759535846,0.91750728,3061.9,3061.8,0.002]
[1765759540388,0.001,3062.0,3061.8,0.002]
[1765759540541,0.45580728,3061.9,3061.8,0.002]
[1765759540736,1.15465846,3061.9,3061.8,0.002]
[1765759541055,1.15465846,3061.9,3060.3,0.1824]
[1765759541056,2.19703375,3061.9,3060.3,0.1824]
[1765759541229,0.0026,3061.0,3060.4,0.9813]
[1765759541429,0.0026,3061.0,3060.5,0.4643]
[1765759541658,0.0026,3061.0,3060.6,0.58047529]
[1765759545458,0.25580728,3060.7,3060.5,0.521]
[1765759545675,0.0046,3060.6,3060.5,0.002]
[1765759547053,0.4686,3060.6,3060.5,0.002]
[1765759549866,0.0046,3060.6,3060.5,0.002]
[1765759550762,4.1104895,3060.6,3060.5,0.002]
[1765759551540,3.6464895,3060.6,3060.5,0.002]
[1765759551871,4.1104895,3060.6,3060.5,0.002]
[1765759556273,3.6464895,3060.6,3060.5,0.002]
[1765759556571,4.1005895,3060.6,3060.5,0.002]
[1765759559152,3.6464895,3060.6,3060.5,0.002]
[1765759559874,4.1005895,3060.6,3060.5,0.002]
[1765759560862,0.8332563,3060.6,3060.5,0.002]
[1765759561052,3.27652382,3061.2,3060.5,0.4918]
[1765759561253,0.00980728,3061.7,3061.1,0.6831]
[1765759561453,0.00980728,3061.7,3061.6,0.4898]
[1765759561454,3.2759666,3061.7,3061.6,0.4898]
[1765759561647,3.2660891,3061.8,3061.6,0.4898]
[1765759561842,3.2670891,3061.8,3061.6,0.4898]
[1765759562144,0.001,3061.8,3061.6,0.4898]
[1765759562451,0.28670728,3061.7,3061.2,0.519]
[1765759562843,0.73900728,3061.7,3061.2,0.519]
[1765759563475,4.00516812,3061.7,3061.2,0.519]
[1765759563672,3.55286812,3061.7,3061.2,0.9852]
[1765759564684,0.00980728,3061.5,3060.5,0.002]
[1765759564883,0.0028,3061.2,3060.6,0.519]
[1765759565052,0.00980728,3061.1,3060.6,0.519]
[1765759565382,0.00980728,3061.1,3060.6,3.78625979]
[1765759565590,0.00980728,3061.1,3060.7,1.04667529]
[1765759565772,0.00980728,3061.1,3060.7,1.5301688]
[1765759565953,0.00980728,3061.1,3060.8,0.519]
[1765759566485,3.27639516,3061.3,3060.9,0.519]
[1765759566695,3.73049516,3061.3,3060.9,0.519]
[1765759567404,0.46390728,3061.3,3060.9,0.519]
[1765759568006,0.00980728,3061.3,3060.9,0.519]
[1765759568175,0.00980728,3061.3,3060.9,4.25220673]
[1765759568375,0.00980728,3061.3,3060.9,0.9852]
[1765759568575,0.00980728,3061.3,3060.9,0.519]
[1765759568799,3.2762469,3061.5,3061.2,0.4898]
[1765759568996,3.97589839,3061.5,3061.2,0.4898]
[1765759569295,0.70945877,3061.5,3061.2,0.4898]
[1765759569493,0.28670728,3061.3,3060.9,0.519]
[1765759570576,0.0045,3061.0,3060.9,0.519]
[1765759570776,3.27642489,3061.3,3060.9,0.519]
[1765759570975,0.00980728,3061.1,3060.9,1.0088]
[1765759571625,0.00980728,3061.3,3061.0,0.4898]
[1765759571927,0.00980728,3061.5,3061.2,0.4898]
[1765759572071,0.001,3061.9,3061.4,0.4898]
[1765759572270,0.001,3061.9,3061.7,0.4898]
[1765759572469,0.001,3061.9,3061.7,1.475]
[1765759573306,0.001,3061.9,3061.7,0.4898]
[1765759573602,0.001,3061.9,3061.7,1.475]
[1765759574592,0.001,3061.9,3061.7,5.85381839]
[1765759574806,0.001,3061.9,3061.7,6.67652545]
[1765759575101,0.001,3061.9,3061.7,6.25932239]
[1765759575981,0.001,3061.9,3061.7,5.74032239]
[1765759576180,0.001,3061.9,3061.7,6.25932239]
[1765759577518,0.001,3061.9,3061.7,1.0088]
[1765759577878,0.001,3061.9,3061.7,1.58927529]
[1765759578080,0.001,3061.9,3061.7,5.32163461]
[1765759578384,0.001,3061.9,3061.7,5.72713861]
[1765759579117,0.001,3061.9,3061.7,5.7598002]
[1765759579320,0.001,3061.9,3061.7,7.26196241]
[1765759579520,0.001,3061.9,3061.7,7.22930082]
[1765759581628,0.001,3061.9,3061.7,7.64650388]
[1765759581798,0.001,3061.9,3061.7,8.06623243]
[1765759581999,0.001,3061.9,3061.7,7.64650388]
[1765759582594,0.001,3061.9,3061.7,7.77719614]
[1765759584122,0.001,3061.9,3061.8,0.98597929]
[1765759584419,0.001,3061.9,3061.8,6.34502972]
[1765759584618,0.001,3061.9,3061.8,6.3123692]
[1765759584792,0.001,3061.9,3061.8,6.44304993]
[1765759584993,0.001,3061.9,3061.8,6.86025299]
[1765759585453,0.001,3061.9,3061.8,6.44304993]
[1765759586004,0.001,3061.9,3061.8,6.86025299]
[1765759586206,0.001,3061.9,3061.8,24.63068799]
[1765759586408,0.001,3063.1,3062.0,0.405504]
[1765759586722,0.001,3063.1,3062.4,7.21841719]
[1765759587227,0.001,3063.1,3062.4,7.68711719]
[1765759588007,0.001,3063.1,3062.4,8.09262119]
[1765759588207,0.001,3063.1,3063.0,6.98152119]
[1765759588411,0.001,3063.1,3063.0,11.23459428]
[1765759588610,0.001,3063.1,3063.0,12.16310501]
[1765759595818,0.001,3063.1,3063.0,11.64410501]
[1765759596130,0.001,3063.1,3063.0,12.16310501]
[1765759598639,0.001,3063.1,3063.0,12.2937486]
[1765759600739,0.001,3063.1,3063.0,12.16310501]
[1765759601645,0.001,3063.1,3063.0,6.16756311]
[1765759601947,0.001,3063.1,3063.0,6.20021084]
[1765759606624,0.001,3063.1,3063.0,12.5405089]
[1765759606957,0.001,3063.1,3063.0,12.50786117]
[1765759607164,0.001,3063.1,3063.0,26.40159717]
[1765759607532,0.001,3063.1,3063.0,14.78555011]
[1765759607864,0.001,3063.1,3063.0,13.64336111]
[1765759608037,0.001,3063.1,3063.0,19.90238453]
[1765759608240,0.001,3063.7,3063.5,0.405504]
[1765759608457,0.001,3063.7,3063.6,3.50808283]
[1765759608658,0.001,3063.7,3063.6,2.00592062]
[1765759608859,0.0748,3063.7,3063.6,0.58047529]
[1765759609037,0.5502,3063.7,3063.6,1.09847529]
[1765759609394,0.0748,3063.7,3063.6,1.09847529]
[1765759610145,0.0748,3063.7,3063.6,4.36260898]
[1765759610460,0.0748,3063.7,3063.6,5.12529471]
[1765759610628,0.001,3063.7,3063.6,6.00009871]
[1765759610833,0.1221,3063.7,3063.6,5.53079871]
[1765759611045,0.1221,3063.7,3063.6,5.12529471]
[1765759612154,0.5947,3063.7,3063.6,4.36260898]
[1765759612560,0.001,3063.7,3063.6,4.83190898]
[1765759612857,0.1221,3063.7,3063.6,4.36260898]
[1765759613432,0.001,3063.7,3063.6,4.36260898]
[1765759613938,0.1256,3063.7,3063.6,4.36260898]
[1765759614247,0.594,3063.7,3063.0,0.47421073]
[1765759614451,0.00980728,3063.6,3062.5,0.002]
[1765759614653,0.00980728,3063.6,3062.5,3.267284]
[1765759614654,0.487,3062.6,3062.5,3.267284]
[1765759614855,0.487,3062.6,3062.5,4.190788]
[1765759615092,0.0478,3062.8,3062.6,0.98597929]
[1765759615382,0.1956,3063.0,3062.7,0.50195092]
[1765759615938,0.1956,3063.0,3062.6,0.98597929]
[1765759616137,0.001,3063.7,3062.7,6.53018578]
[1765759616332,0.001,3063.7,3062.8,0.405504]
[1765759616550,0.001,3063.7,3062.9,1.21156898]
[1765759616863,0.001,3063.7,3062.9,0.518]
[1765759617044,0.1931,3063.0,3062.9,0.518]
[1765759617241,0.3049,3063.0,3062.9,0.518]
[1765759617651,0.1118,3063.0,3062.9,0.518]
[1765759618165,0.1931,3063.3,3062.9,0.9892]
[1765759618345,0.1931,3063.3,3063.1,0.58047529]
[1765759618837,0.1118,3063.2,3063.1,0.58047529]
[1765759619036,0.1118,3063.2,3063.1,1.09847529]
[1765759619547,0.1118,3063.2,3063.1,0.518]
[1765759620134,0.1118,3063.2,3062.8,3.26495947]
[1765759620335,0.0011,3063.0,3062.9,0.518]
[1765759620961,0.4531,3063.0,3062.9,0.518]
[1765759621970,0.4531,3063.0,3062.7,0.58047529]
[1765759622174,0.134,3062.8,3062.6,3.26713411]
[1765759622371,0.452,3063.0,3062.8,0.518]
[1765759622883,0.1351,3062.9,3062.8,0.518]
[1765759623574,0.5839,3062.9,3062.8,0.518]
[1765759623749,0.001,3063.7,3062.8,0.9892]
[1765759623942,3.71613369,3063.6,3062.8,0.9892]
[1765759624142,0.1351,3062.9,3062.8,0.518]
[1765759624351,0.3282,3062.9,3062.6,0.002]
[1765759624583,0.0045,3062.7,3062.6,0.002]
[1765759625072,0.4565,3062.7,3062.6,0.002]
[1765759625288,0.4565,3062.7,3062.5,0.002]
[1765759625574,0.13840728,3062.6,3062.5,0.002]
[1765759626174,0.5806,3062.6,3062.5,0.002]
[1765759626745,4.24017765,3062.6,3062.5,0.002]
[1765759630958,5.22615694,3062.6,3062.5,0.002]
[1765759632085,4.82065294,3062.6,3062.5,0.002]
[1765759632787,5.22615694,3062.6,3062.5,0.002]
[1765759633190,4.82065294,3062.6,3062.5,0.002]
[1765759633386,5.33965294,3062.6,3062.5,0.002]
[1765759633597,4.24017765,3062.6,3062.5,0.002]
[1765759635368,4.24117765,3062.6,3062.5,0.002]
[1765759642037,3.85660678,3062.6,3062.5,0.002]
[1765759642190,0.1296,3062.6,3062.5,0.002]
[1765759642687,0.13940728,3062.6,3062.5,0.002]
[1765759643289,0.001,3062.6,3062.5,0.9722]
[1765759643494,0.001,3062.6,3062.5,1.377704]
[1765759643717,0.001,3062.6,3062.5,1.95817929]
[1765759643929,0.001,3063.9,3062.6,0.405504]
[1765759644088,0.001,3063.9,3062.7,0.519]
[1765759644593,0.001,3063.9,3063.6,0.6621]
[1765759644806,0.0409,3063.9,3062.9,0.405504]
[1765759645121,0.001,3063.9,3063.0,0.499]
[1765759645327,0.001,3063.9,3063.1,6.52933302]
[1765759645622,0.001,3063.9,3063.2,0.7028333]
[1765759646126,0.0409,3063.9,3063.2,0.7028333]
[1765759646428,0.2882,3063.3,3062.7,3.26506087]
[1765759646624,0.2882,3063.3,3062.7,3.78406087]
[1765759647189,0.2882,3063.3,3062.8,3.26497576]
[1765759647504,0.01080728,3063.7,3063.2,0.4806]
[1765759647698,0.001,3063.7,3063.3,0.4806]
[1765759648525,0.2832,3063.4,3063.1,0.519]
[1765759649200,0.00980728,3063.6,3063.1,0.519]
[1765759649407,0.46780728,3063.7,3063.2,0.37836874]
[1765759649599,0.001,3063.7,3063.2,1.45554403]
[1765759650123,0.001,3063.7,3063.3,0.4967]
[1765759650702,0.001,3063.7,3063.4,3.2643468]
[1765759651734,0.001,3063.7,3063.4,0.4967]
[1765759651950,0.001,3063.7,3063.5,0.37611534]
[1765759652717,0.001,3063.7,3063.6,0.9699]
[1765759653120,0.001,3063.7,3063.6,1.4889]
[1765759654531,0.001,3063.7,3063.6,5.33350898]
[1765759657931,0.001,3063.7,3063.6,0.58047529]
[1765759658141,0.001,3063.7,3063.6,4.36260898]
[1765759658303,0.001,3063.7,3063.6,5.12530373]
[1765759658734,0.001,3063.7,3063.6,1.86117004]
[1765759658931,0.001,3063.7,3063.6,5.12530373]
[1765759660037,0.001,3063.7,3063.6,6.12784506]
[1765759660735,0.001,3063.7,3063.6,6.09520373]
[1765759664240,0.2835,3063.7,3063.6,0.58047529]
[1765759664432,0.2835,3063.7,3063.6,1.09847529]
[1765759664943,0.001,3063.7,3063.6,4.83580898]
[1765759666116,0.001,3063.7,3063.6,4.36260898]
[1765759666311,0.093,3063.7,3063.6,0.58047529]
[1765759666516,0.55,3063.7,3063.6,0.518]
[1765759666717,0.093,3063.7,3063.6,0.518]
[1765759669146,0.093,3063.7,3063.6,3.78213369]
[1765759669934,0.093,3063.7,3063.6,0.518]
[1765759670448,0.001,3063.7,3063.6,4.75203369]
[1765759670635,0.001,3063.7,3063.6,5.5536606]
[1765759671225,0.001,3063.7,3063.6,15.07992189]
[1765759671427,0.001,3063.7,3063.6,13.0630215]
[1765759671623,0.001,3063.7,3063.6,6.53963989]
[1765759671944,0.001,3063.7,3063.6,9.14898289]
[1765759673118,0.001,3063.7,3063.6,29.47797689]
[1765759673536,0.001,3063.7,3063.6,26.61756689]
[1765759674122,0.001,3063.7,3063.6,12.61085889]
[1765759674450,0.001,3063.7,3063.6,12.54950489]
[1765759674651,0.001,3063.7,3063.6,6.02163989]
[1765759674851,0.001,3063.7,3063.6,6.13413589]
[1765759675057,0.001,3063.7,3063.6,4.5389606]
[1765759675352,0.001,3063.7,3063.6,5.5536606]
[1765759675575,0.001,3063.7,3063.6,6.13413589]
[1765759675930,0.001,3063.7,3063.6,6.16677722]
[1765759676126,0.6482,3063.7,3063.6,0.03264133]
[1765759676456,0.001,3063.7,3063.4,0.518]
[1765759676762,0.001,3063.7,3063.6,3.26413369]
[1765759677052,0.001,3063.7,3063.6,4.29560898]
[1765759677354,0.001,3063.7,3063.6,5.103404]
[1765759677941,0.001,3063.7,3063.6,5.602604]
[1765759678955,0.001,3063.7,3063.6,5.103404]
[1765759679669,0.001,3063.7,3063.6,5.63524533]
[1765759680565,0.001,3063.7,3063.6,6.46047788]
[1765759680763,0.001,3063.7,3063.6,21.311717]
[1765759681762,0.001,3063.7,3063.6,20.973618]
[1765759682148,0.001,3063.7,3063.6,26.95289603]
[1765759682768,0.001,3063.7,3063.6,31.10740203]
[1765759682967,0.001,3063.7,3063.6,30.30490964]
[1765759683269,0.001,3064.3,3064.1,0.98597929]
[1765759683564,0.001,3064.3,3064.2,26.67596177]
[1765759683743,0.001,3064.3,3064.2,28.74338983]
[1765759683942,0.001,3064.3,3064.2,4.8030918]
[1765759684263,0.001,3064.3,3064.2,2.64957929]
[1765759684664,0.001,3064.3,3064.2,3.84396983]
[1765759684849,0.7265,3064.3,3064.2,3.84396983]
[1765759685049,0.7265,3064.3,3063.9,3.26378354]
[1765759685249,0.0046,3064.1,3064.0,0.518]
[1765759685444,0.4606,3064.2,3063.8,3.26391928]
[1765759685652,0.4606,3064.1,3064.0,0.518]
[1765759685972,0.001,3064.3,3064.0,1.47665083]
[1765759686135,0.2668,3064.1,3064.0,1.47665083]
[1765759686337,0.4616,3064.3,3064.0,1.47665083]
[1765759686964,0.4616,3064.3,3064.2,0.58047529]
[1765759687568,0.7284,3064.3,3064.2,0.58047529]
[1765759689453,0.7284,3064.3,3064.2,3.84396983]
[1765759689655,0.001,3064.3,3064.2,6.03268341]
[1765759691944,0.4606,3065.2,3064.2,6.03268341]
[1765759691945,0.001,3066.2,3065.1,12.024745]
[1765759692280,0.001,3066.2,3065.5,1.051904]
[1765759692595,0.001,3066.2,3065.5,1.551104]
[1765759693647,0.001,3066.2,3065.5,5.91268987]
[1765759694147,0.001,3066.2,3065.5,5.19828987]
[1765759694385,0.001,3066.2,3065.5,5.71728987]
[1765759694554,0.001,3066.2,3065.5,6.63478237]
[1765759696180,0.001,3066.2,3065.5,21.2185154]
[1765759696351,0.001,3066.2,3065.5,21.71571846]
[1765759696546,0.001,3066.2,3065.5,19.43941146]
[1765759696977,0.001,3066.2,3065.5,18.99579546]
[1765759697752,0.001,3066.2,3065.5,14.7465294]
[1765759698374,0.001,3066.2,3065.5,6.63478237]
[1765759700169,0.001,3066.2,3065.5,6.11578237]
[1765759700503,0.001,3066.2,3065.5,6.63478237]
[1765759700699,0.09,3065.9,3065.5,4.76007837]
[1765759701005,0.804,3065.6,3065.5,3.26211058]
[1765759701207,0.804,3065.6,3065.4,3.26218577]
[1765759701416,0.804,3065.6,3065.3,3.26230419]
[1765759701417,0.4606,3065.5,3065.3,3.26230419]
[1765759701599,0.4606,3065.5,3065.4,3.781217]
[1765759701917,0.4606,3065.5,3065.4,0.519]
[1765759702084,0.8028,3065.5,3065.4,0.519]
[1765759702601,0.8028,3065.5,3065.3,3.26229171]
[1765759702810,0.001,3065.6,3064.2,0.80037464]
[1765759702811,0.464,3065.4,3064.2,0.80037464]
[1765759703100,0.3388,3065.2,3064.3,7.04477608]
[1765759703400,0.3388,3065.2,3064.4,0.58047529]
[1765759703603,0.4606,3065.1,3064.4,0.58047529]
[1765759703801,0.4606,3065.1,3064.5,0.76252514]
[1765759704677,0.4606,3065.1,3064.6,6.52613716]
[1765759704878,0.4606,3065.1,3064.7,0.518]
[1765759705218,0.4776,3064.7,3064.6,3.26306858]
[1765759705382,0.3422,3064.7,3064.6,4.36154387]
[1765759706725,0.3422,3064.7,3064.6,3.84354387]
[1765759706926,0.7943,3064.7,3064.6,3.84354387]
[1765759707127,0.7943,3064.7,3064.6,4.36154387]
[1765759707429,0.1368,3065.0,3064.6,4.36154387]
[1765759707597,0.1368,3065.0,3064.7,0.58047529]
[1765759708230,0.3108,3064.8,3064.7,0.58047529]
[1765759709621,0.7992,3064.8,3064.7,3.8434374]
[1765759710418,0.7992,3064.8,3064.7,0.518]
[1765759710727,0.7992,3064.8,3064.3,3.26338512]
[1765759711025,0.4951,3064.7,3064.4,0.518]
[1765759711195,0.4902,3064.7,3064.6,3.26306858]
[1765759711392,0.801,3064.7,3064.6,0.518]
[1765759713549,0.801,3064.7,3064.6,3.78106858]
[1765759714249,0.801,3064.7,3064.6,3.78306858]
[1765759715460,0.1368,3065.0,3064.6,7.04613716]
[1765759716041,0.4653,3064.7,3064.6,0.002]
[1765759716236,0.8009,3064.7,3064.6,0.002]
[1765759719353,4.47023019,3064.7,3064.6,0.002]
[1765759720130,1.20726808,3064.7,3064.6,0.002]
[1765759720933,0.8009,3064.7,3064.6,0.002]
[1765759723295,0.1368,3065.0,3064.6,0.002]
[1765759723564,0.4653,3064.7,3064.6,0.52]
[1765759723752,0.4653,3064.7,3064.6,0.002]
[1765759723957,0.8009,3064.7,3064.6,0.002]
[1765759724265,1.2072668,3064.7,3064.6,0.002]
[1765759724464,4.47022891,3064.7,3064.6,0.002]
[1765759727279,0.8009,3064.7,3064.6,0.002]
[1765759727664,0.4653,3064.7,3064.6,0.002]
[1765759728188,0.8009,3064.7,3064.6,0.002]
[1765759729078,0.4653,3064.7,3064.6,0.002]
[1765759730280,0.8009,3064.7,3064.6,0.002]
[1765759730648,0.4653,3064.7,3064.6,0.002]
[1765759730854,0.8009,3064.7,3064.6,0.002]
[1765759733182,0.1368,3065.0,3064.6,0.002]
[1765759733356,0.4653,3064.7,3064.6,0.002]
[1765759733559,0.4653,3064.7,3064.6,0.38052473]
[1765759733754,0.4653,3064.7,3064.6,0.002]
[1765759734861,0.8009,3064.7,3064.6,0.002]
[1765759737288,0.1368,3065.0,3064.6,0.4762]
[1765759737469,0.6058,3065.0,3064.6,0.002]
[1765759738498,0.1368,3065.0,3064.6,0.002]
[1765759739666,0.001,3065.1,3064.6,0.4867]
[1765759739870,0.001,3065.1,3064.7,0.37518751]
[1765759740071,0.001,3065.1,3064.8,0.518]
[1765759740296,0.001,3065.1,3065.0,0.4742]
[1765759740661,0.001,3065.1,3065.0,1.364404]
[1765759741057,0.001,3065.1,3065.0,1.4769]
[1765759741810,0.001,3065.1,3065.0,5.32001803]
[1765759741984,0.001,3065.1,3065.0,6.50457261]
[1765759742565,0.001,3065.1,3065.0,6.01987261]
[1765759742872,0.001,3065.1,3065.0,0.518]
[1765759743089,0.001,3065.1,3064.6,0.4867]
[1765759743286,0.001,3065.1,3064.7,1.0027]
[1765759743594,0.2616,3064.7,3064.6,0.002]
[1765759743966,0.7271,3064.7,3064.6,0.002]
[1765759744190,3.99986939,3064.7,3064.6,0.002]
[1765759744393,0.73690728,3064.7,3064.6,0.002]
[1765759744567,3.99986939,3064.7,3064.6,0.002]
[1765759745195,0.73690728,3064.7,3064.6,0.002]
[1765759745864,3.99986939,3064.7,3064.6,0.002]
[1765759746065,4.72613176,3064.7,3064.6,0.002]
[1765759750899,5.13163576,3064.7,3064.6,0.002]
[1765759751073,18.89780905,3064.7,3064.6,0.002]
[1765759751581,17.71944605,3064.7,3064.6,0.002]
[1765759751996,0.98597929,3064.4,3063.9,0.002]
[1765759752191,0.98857929,3064.0,3063.9,0.002]
[1765759752498,0.99838657,3064.0,3063.9,0.002]
[1765759752692,1.46738657,3064.0,3063.9,0.002]
[1765759754273,4.73109414,3064.0,3063.9,0.002]
[1765759754978,4.32559014,3064.0,3063.9,0.002]
[1765759755177,5.08548999,3064.0,3063.9,0.002]
[1765759756219,29.48677299,3064.0,3063.9,0.002]
[1765759756381,26.72074499,3064.0,3063.9,0.002]
[1765759756580,26.26978699,3064.0,3063.9,0.002]
[1765759756781,24.14432199,3064.0,3063.9,0.002]
[1765759757016,21.63143399,3064.0,3063.9,0.002]
[1765759757310,20.27168299,3064.0,3063.9,0.002]
[1765759757707,5.49099399,3064.0,3063.9,0.002]
[1765759757909,5.08548999,3064.0,3063.9,0.002]
[1765759758107,3.27611485,3064.0,3063.9,0.002]
[1765759759599,3.74511485,3064.0,3063.9,0.002]
[1765759760411,0.00980728,3064.0,3063.9,0.002]
[1765759760621,0.00980728,3064.0,3063.9,0.4762]
[1765759761289,0.00980728,3064.1,3063.9,0.4762]
[1765759761510,0.00980728,3064.4,3064.3,0.4742]
[1765759761713,0.00980728,3064.4,3064.3,0.6556]
[1765759762003,0.00980728,3064.6,3064.3,1.1403]
[1765759762211,0.00980728,3064.4,3064.3,1.1403]
[1765759762619,0.49730728,3064.4,3064.0,0.1814]
[1765759762784,0.00980728,3064.2,3063.9,0.002]
[1765759762985,0.00980728,3064.2,3064.0,0.4847]
[1765759763322,0.00980728,3064.2,3064.1,0.6556]
[1765759763708,0.00980728,3064.2,3064.1,1.1403]
[1765759764014,0.00980728,3064.2,3064.1,0.6556]
[1765759764515,0.00980728,3064.8,3064.1,0.6556]
[1765759764516,0.00980728,3064.5,3064.1,1.1403]
[1765759764716,0.00980728,3064.8,3064.3,3.26338804]
[1765759764919,0.00980728,3064.8,3064.3,3.9826857]
[1765759764920,0.00980728,3064.6,3064.3,3.9826857]
[1765759765124,0.00980728,3064.6,3064.4,0.4847]
[1765759765289,0.00980728,3064.6,3064.5,0.4742]
[1765759766023,0.00980728,3064.6,3064.5,0.9589]
[1765759767900,3.93544443,3064.6,3063.8,0.002]
[1765759768118,0.46410728,3064.0,3063.8,0.002]
[1765759768703,0.67220728,3064.0,3063.8,0.002]
[1765759769335,3.93591485,3064.0,3063.8,0.002]
[1765759769635,4.51639014,3064.0,3063.8,0.002]
[1765759770133,3.72781485,3064.0,3063.8,0.002]
[1765759770535,4.68783596,3064.0,3063.8,0.002]
[1765759772649,4.47973596,3064.0,3063.8,0.002]
[1765759772946,0.00980728,3064.0,3063.8,0.002]
[1765759773634,3.72541485,3064.0,3063.8,0.002]
[1765759774035,0.46170728,3064.0,3063.8,0.002]
[1765759774208,0.00980728,3064.0,3063.8,0.002]
[1765759774607,0.00980728,3064.0,3063.9,0.4599]
[1765759774810,0.00980728,3064.0,3063.9,0.002]
[1765759776131,3.27351485,3064.0,3063.9,0.002]
[1765759777344,0.001,3064.5,3063.9,0.4599]
[1765759777537,0.01080728,3064.5,3064.4,0.6449]
[1765759778040,3.27398234,3064.5,3064.1,0.4848]
[1765759778246,0.00980728,3064.3,3064.1,0.4848]
[1765759778614,0.00980728,3064.3,3064.2,0.4579]
[1765759779130,0.01080728,3064.5,3064.2,0.9427]
[1765759779329,0.001,3064.5,3064.4,0.4579]
[1765759779843,0.001,3064.5,3064.4,0.9427]
[1765759780223,0.001,3064.5,3064.4,1.36330097]
[1765759780945,0.001,3064.5,3064.4,4.62658252]
[1765759781522,0.001,3064.5,3064.4,1.36330097]
[1765759781729,0.001,3064.5,3064.4,4.62658252]
[1765759782046,0.001,3064.5,3064.4,0.4579]
[1765759782414,0.001,3064.5,3064.4,4.20598155]